bitfinex/quotes_ETHUSD_20240709
["timestamp","ask_amount","ask_price","bid_price","bid_amount"]
[1720548859494,3.87429634,3068.4,3068.2,3.25923]
[1720548859694,0.3041287,3068.0,3067.9,3.25955]
[1720548859898,0.3041287,3068.0,3067.6,3.2598]
[1720548859899,0.3041287,3067.8,3067.6,3.2598]
[1720548860102,0.3041287,3067.8,3067.5,3.25991]
[1720548860103,1.01958689,3067.7,3067.5,3.25991]
[1720548860297,2.4423946,3067.6,3067.5,3.25991]
[1720548860525,1.32371559,3067.6,3067.5,3.25991]
[1720548860978,0.3041287,3067.6,3067.5,3.25991]
[1720548861180,1.01958689,3067.7,3067.6,3.25987]
[1720548861421,1.42276871,3067.7,3067.6,12.09811]
[1720548861730,0.67995222,3067.9,3067.6,5.57837]
[1720548861889,1.01992834,3068.0,3067.9,3.25955]
[1720548861890,0.3041287,3068.0,3067.9,3.25955]
[1720548862078,3.0866492,3068.0,3067.9,3.25955]
[1720548862283,3.0866492,3068.0,3067.9,6.5191]
[1720548862640,2.74657758,3068.0,3067.9,6.5191]
[1720548862926,1.72674963,3068.0,3067.9,6.5191]
[1720548863580,2.74663607,3068.0,3067.9,6.5191]
[1720548863817,2.74663607,3068.0,3067.7,3.25974]
[1720548863818,1.72674963,3068.0,3067.7,3.25974]
[1720548863984,0.3041287,3067.8,3067.7,3.2597]
[1720548864184,2.7465789,3067.8,3067.7,6.51947]
[1720548864387,1.32395797,3067.8,3067.7,3.2597]
[1720548864709,0.3041287,3067.8,3067.7,3.2597]
[1720548864936,4.5522792,3067.8,3067.5,3.25991]
[1720548865211,4.5522792,3067.8,3067.3,3.26012]
[1720548865212,1.01963622,3067.6,3067.3,3.26009]
[1720548865379,1.01963622,3067.6,3067.4,3.26007]
[1720548865598,1.01963622,3067.5,3067.4,3.26007]
[1720548866134,2.44256165,3067.5,3067.3,3.26017]
[1720548866336,1.32340391,3067.4,3067.3,3.26017]
[1720548866520,1.32340391,3067.4,3067.2,3.2602]
[1720548866521,1.01927521,3067.4,3067.2,3.2603]
[1720548866703,0.3041287,3067.3,3067.2,3.2603]
[1720548867091,1.32340391,3067.3,3067.2,3.2603]
[1720548867594,0.3041287,3067.3,3067.2,3.2603]
[1720548867810,0.3041287,3067.1,3067.0,3.26042]
[1720548869184,0.98337698,3067.1,3067.0,3.26042]
[1720548869381,0.3041287,3067.1,3066.9,3.26058]
[1720548869585,0.3041287,3067.1,3067.0,3.26048]
[1720548870391,0.98337698,3067.1,3066.8,3.26063]
[1720548871093,0.98337698,3067.1,3066.9,3.26053]
[1720548871290,0.3041287,3067.1,3067.0,3.26051]
[1720548876820,0.67844596,3067.4,3066.7,3.2608]
[1720548877026,0.98257466,3067.4,3067.3,6.52038]
[1720548878050,0.3041287,3067.4,3067.3,6.52038]
[1720548878942,7.46,3067.6,3067.5,3.25998]
[1720548879145,0.98257466,3067.7,3067.6,3.25987]
[1720548879658,0.3041287,3067.7,3067.6,3.25987]
[1720548879862,0.3041287,3067.7,3067.6,6.51974]
[1720548880023,0.67844596,3067.9,3067.8,6.51932]
[1720548880224,0.67844596,3068.1,3067.6,0.651974]
[1720548880427,0.3041287,3068.1,3068.0,6.5189]
[1720548881360,0.3041287,3068.1,3067.9,3.25955]
[1720548881564,0.3041287,3068.1,3067.3,2.842]
[1720548881565,0.3041287,3067.7,3067.6,6.51965]
[1720548883960,0.98210259,3068.2,3068.1,3.25934]
[1720548884162,0.3041287,3068.2,3068.1,6.51868]
[1720548884325,0.3041287,3068.2,3068.1,3.25934]
[1720548884528,0.98210259,3068.2,3068.1,3.25934]
[1720548884838,1.43322745,3068.2,3068.1,3.25934]
[1720548885245,1.43322745,3068.2,3067.9,3.25948]
[1720548885246,1.43322745,3068.2,3068.0,3.25944]
[1720548885424,0.3041287,3068.2,3068.1,3.25934]
[1720548885625,2.11133304,3068.2,3068.1,3.25934]
[1720548886030,0.3041287,3068.2,3068.1,6.51868]
[1720548886330,0.67806642,3068.3,3068.1,3.911208]
[1720548886531,12.5041287,3068.5,3068.3,3.25913]
[1720548886532,0.3041287,3068.5,3068.3,3.25913]
[1720548886838,1.01696084,3068.7,3068.6,6.51762]
[1720548886839,0.3041287,3068.7,3068.6,6.51762]
[1720548887030,7.46,3068.8,3068.7,6.5174]
[1720548888641,7.46,3068.8,3068.7,9.7761]
[1720548888935,12.5041287,3069.1,3069.0,6.51678]
[1720548888936,0.3041287,3069.1,3069.0,6.51678]
[1720548891378,0.3041287,3069.1,3069.0,3.25839]
[1720548891750,0.98253607,3069.1,3069.0,5.54919]
[1720548892087,0.67845927,3069.3,3069.1,3.25828]
[1720548892245,1.01696084,3069.4,3069.3,3.25807]
[1720548892246,0.98267705,3069.4,3069.3,3.25807]
[1720548892447,0.3041287,3069.4,3069.3,3.25807]
[1720548893079,0.3041287,3069.4,3069.3,6.51614]
[1720548893283,0.3041287,3069.5,3069.4,3.25786]
[1720548893686,0.98254716,3069.5,3069.4,3.25786]
[1720548893868,0.3041287,3069.5,3069.4,3.25786]
[1720548894188,0.98254716,3069.5,3069.3,3.25803]
[1720548894355,0.3041287,3069.5,3069.3,3.25803]
[1720548894556,0.3041287,3069.5,3069.4,3.25796]
[1720548895091,0.3041287,3069.3,3069.2,3.2581]
[1720548895786,0.3041287,3069.3,3069.1,3.25827]
[1720548895974,0.3041287,3069.3,3069.1,6.51648]
[1720548896180,0.3041287,3069.3,3069.1,3.25821]
[1720548897065,0.3041287,3069.0,3068.9,3.2584]
[1720548899590,0.67841846,3069.5,3068.5,2.842]
[1720548899591,0.3041287,3068.7,3068.5,2.842]
[1720548900108,0.3041287,3068.7,3068.6,3.25876]
[1720548900323,0.3041287,3068.9,3068.7,3.25862]
[1720548900764,7.46,3069.2,3068.5,3.25892]
[1720548900981,7.46,3069.2,3069.1,3.25828]
[1720548901198,0.3041287,3069.0,3068.9,3.25846]
[1720548901665,0.3041287,3068.8,3068.7,3.2586]
[1720548901869,0.3041287,3068.8,3068.7,6.5173]
[1720548903380,0.3041287,3068.8,3068.7,7.41161]
[1720548903584,0.3041287,3069.1,3069.0,6.51678]
[1720548904031,1.0176277,3069.6,3069.4,3.25792]
[1720548904032,8.13841846,3069.6,3069.4,3.25792]
[1720548904291,0.3041287,3069.5,3069.4,3.25792]
[1720548905290,0.3041287,3069.3,3069.2,3.25814]
[1720548905505,7.46,3069.6,3068.6,3.25873]
[1720548905506,0.3041287,3068.7,3068.6,3.25873]
[1720548905811,0.3041287,3068.7,3068.6,6.51754]
[1720548906635,0.3041287,3069.1,3068.6,3.25873]
[1720548906765,8.13841846,3069.6,3069.5,6.5157]
[1720548906958,0.67841846,3069.8,3069.7,6.51528]
[1720548907159,7.46,3070.1,3070.0,6.51464]
[1720548907392,7.46,3070.1,3070.0,9.77196]
[1720548909280,7.46,3070.1,3070.0,10.749156]
[1720548910529,0.3041287,3070.3,3070.2,9.77133]
[1720548910727,7.46,3070.6,3070.5,9.77037]
[1720548910928,0.3041287,3070.7,3070.6,6.51338]
[1720548911081,0.3041287,3070.7,3070.6,9.77007]
[1720548911283,0.3041287,3070.9,3070.8,6.51296]
[1720548911733,7.8768403,3071.1,3071.0,6.51252]
[1720548911938,0.4168403,3071.1,3071.0,9.76878]
[1720548912519,0.4168403,3071.1,3071.0,16.2938835]
[1720548912520,0.1127116,3071.1,3071.0,16.2938835]
[1720548913382,7.46,3071.4,3071.0,6.5251035]
[1720548913586,7.46,3071.8,3071.7,9.76656]
[1720548913901,7.46,3072.3,3072.2,9.76497]
[1720548914084,7.46,3072.3,3072.2,10.741467]
[1720548914425,7.46,3072.3,3072.2,12.02437]
[1720548914594,7.46,3072.3,3072.2,8.76938]
[1720548914797,7.46,3072.3,3072.2,6.50998]
[1720548915359,7.46,3072.3,3071.4,3.779]
[1720548915360,0.3041287,3071.8,3071.6,3.25553]
[1720548915639,7.46,3072.3,3070.6,3.25661]
[1720548915640,0.3041287,3071.7,3071.4,3.25576]
[1720548915797,0.3041287,3071.7,3071.6,3.25561]
[1720548915997,3.0,3072.2,3071.4,3.25576]
[1720548915998,0.3041287,3071.5,3071.4,3.25576]
[1720548916199,0.3041287,3071.3,3071.2,3.25598]
[1720548916732,0.3041287,3071.3,3071.2,6.51203]
[1720548917131,0.3041287,3071.3,3071.2,3.25598]
[1720548917309,0.3041287,3070.7,3070.6,3.25666]
[1720548917524,0.3041287,3070.7,3070.2,3.25707]
[1720548917847,0.3041287,3070.7,3070.1,7.03618]
[1720548917848,0.3041287,3070.2,3070.1,6.5144]
[1720548918211,6.25618,3071.1,3070.5,3.2567]
[1720548918212,0.3041287,3070.7,3070.5,3.2567]
[1720548918391,3.0,3071.1,3070.8,3.25645]
[1720548918392,0.3041287,3070.9,3070.8,3.25645]
[1720548919039,7.46,3071.2,3070.9,3.25633]
[1720548919331,0.3041287,3070.9,3070.5,3.25675]
[1720548919487,0.3041287,3070.9,3070.7,3.25651]
[1720548920322,7.46,3071.2,3070.3,3.25697]
[1720548920323,0.3041287,3070.6,3070.3,3.25697]
[1720548920531,0.3041287,3070.6,3070.5,3.25679]
[1720548920746,0.3041287,3070.6,3070.5,6.51358]
[1720548920939,7.46,3071.2,3070.8,3.2564]
[1720548920940,0.3041287,3071.1,3070.8,3.2564]
[1720548921149,7.7641287,3071.2,3071.0,3.25625]
[1720548921309,7.7641287,3071.2,3071.1,3.25616]
[1720548921705,0.3041287,3071.2,3071.1,6.51232]
[1720548922439,7.46,3071.7,3071.3,3.25586]
[1720548922599,12.2,3072.0,3071.5,3.25572]
[1720548922600,0.3041287,3071.6,3071.5,3.25572]
[1720548923202,0.3041287,3071.6,3071.5,6.51145]
[1720548923426,0.3041287,3071.6,3071.5,3.25572]
[1720548924636,0.3041287,3071.5,3071.0,3.25621]
[1720548924824,0.3041287,3071.2,3071.1,3.25615]
[1720548925019,0.3041287,3071.2,3071.1,6.51231]
[1720548925349,0.3041287,3071.6,3071.4,3.25577]
[1720548925571,0.3041287,3071.6,3071.1,0.651231]
[1720548925572,0.3041287,3071.6,3071.5,6.51146]
[1720548925727,0.3041287,3071.2,3071.1,3.25606]
[1720548925925,0.3041287,3070.9,3070.8,3.25641]
[1720548926450,0.3041287,3070.5,3070.2,3.25709]
[1720548926751,0.3041287,3070.5,3070.4,3.2569]
[1720548926918,0.3041287,3070.5,3070.2,3.960627]
[1720548927113,0.3041287,3070.3,3070.2,3.960627]
[1720548927318,0.3041287,3070.5,3070.2,3.2571]
[1720548927523,0.3041287,3070.6,3070.3,3.25696]
[1720548927729,0.3041287,3070.2,3070.1,3.25719]
[1720548929113,0.3041287,3070.2,3070.1,6.51441]
[1720548929471,0.3041287,3070.2,3069.5,2.3796]
[1720548929472,0.3041287,3070.5,3070.4,3.2569]
[1720548929612,7.7641287,3070.7,3069.7,3.779]
[1720548929950,7.7641287,3070.7,3070.6,3.25669]
[1720548930310,7.7641287,3070.7,3070.6,6.51338]
[1720548931153,7.7641287,3070.7,3070.6,3.25669]
[1720548931372,0.3041287,3070.7,3070.6,3.25669]
[1720548931660,0.3041287,3070.7,3070.6,6.51338]
[1720548932554,7.46,3071.2,3069.9,2.4996]
[1720548932766,7.46,3071.2,3070.9,3.25631]
[1720548933056,0.3041287,3071.3,3071.2,3.25605]
[1720548933255,0.3041287,3071.3,3071.2,6.5121]
[1720548933462,7.46,3071.6,3071.3,3.25584]
[1720548933767,0.3041287,3071.4,3071.3,3.25584]
[1720548934257,7.7641287,3071.6,3071.4,3.25582]
[1720548934465,7.7641287,3071.6,3071.5,3.25573]
[1720548936062,7.46,3071.6,3071.5,3.25573]
[1720548936421,7.46,3071.6,3071.5,6.51146]
[1720548936617,7.46,3071.6,3071.5,7.162606]
[1720548937218,7.7641287,3072.1,3072.0,3.2552]
[1720548937423,0.3041287,3072.1,3072.0,3.2552]
[1720548940620,0.3041287,3072.1,3072.0,6.5104]
[1720548940856,0.3041287,3072.1,3072.0,7.16144]
[1720548941048,0.3041287,3072.3,3072.2,3.25499]
[1720548941249,7.7641287,3072.5,3072.0,0.65104]
[1720548941450,7.7641287,3072.5,3072.4,3.25478]
[1720548942034,0.3041287,3072.2,3072.1,3.255]
[1720548942244,0.3041287,3072.2,3072.1,6.5101]
[1720548942960,0.3041287,3072.4,3072.3,6.50978]
[1720548943323,0.3041287,3072.4,3072.3,9.76467]
[1720548943526,7.46,3072.5,3072.4,9.76434]
[1720548943768,7.46,3072.5,3072.4,12.12434]
[1720548944462,7.46,3073.0,3072.8,3.25436]
[1720548944750,12.5041287,3073.4,3073.3,3.25383]
[1720548949264,0.3041287,3073.4,3073.3,3.25383]
[1720548949649,7.46,3073.9,3073.4,3.25372]
[1720548949961,4.2508,3073.6,3072.4,2.36]
[1720548950171,6.80362,3073.5,3072.6,3.25447]
[1720548950327,0.3041287,3072.7,3072.5,3.25459]
[1720548950769,7.46,3073.1,3072.2,3.2549]
[1720548951067,0.3041287,3072.5,3072.4,3.25473]
[1720548952045,0.3041287,3072.3,3072.2,3.25492]
[1720548952257,0.3041287,3072.3,3072.2,6.50991]
[1720548952667,0.3041287,3072.7,3072.6,3.25457]
[1720548952850,0.3041287,3072.7,3072.4,3.25468]
[1720548953050,0.3041287,3072.7,3071.5,3.25568]
[1720548953051,0.55,3072.6,3071.3,3.25589]
[1720548953256,0.3041287,3072.2,3071.1,2.4826]
[1720548953470,5.21596,3072.3,3071.2,3.25599]
[1720548953678,5.21596,3072.3,3071.3,3.25589]
[1720548953679,0.3041287,3071.4,3071.3,3.25589]
[1720548954249,0.3041287,3071.7,3070.7,0.703566]
[1720548954491,0.3041287,3071.7,3070.8,0.6965166]
[1720548954707,7.46,3071.9,3070.8,0.6965166]
[1720548954708,7.7641287,3071.9,3071.6,3.25557]
[1720548954884,0.3041287,3071.7,3071.6,3.581127]
[1720548955182,7.7641287,3071.9,3071.8,3.25542]
[1720548955483,7.7641287,3071.9,3071.8,7.1944807]
[1720548955778,7.7641287,3071.9,3071.8,6.51084]
[1720548956349,7.46,3071.9,3071.8,6.51084]
[1720548958096,7.46,3072.4,3072.3,6.50978]
[1720548958308,0.3041287,3072.5,3072.4,3.25478]
[1720548959451,7.46,3072.9,3071.9,3.2553]
[1720548959452,0.3041287,3072.1,3071.9,3.2553]
[1720548959655,0.3041287,3072.1,3071.7,0.6011457]
[1720548959656,0.3041287,3072.1,3072.0,6.5104]
[1720548959903,8.13746131,3072.9,3072.2,3.25499]
[1720548959904,0.3041287,3072.3,3072.2,3.25499]
[1720548960307,0.3041287,3072.3,3072.1,6.51007]
[1720548960600,0.3041287,3072.3,3071.8,0.79612327]
[1720548960601,0.3041287,3071.9,3071.8,3.25542]
[1720548960757,0.3041287,3071.9,3071.7,3.25552]
[1720548960965,0.3041287,3072.1,3071.7,3.25545]
[1720548961297,0.3041287,3072.1,3072.0,3.2552]
[1720548961507,8.44159001,3072.9,3072.5,3.25461]
[1720548961664,0.3041287,3072.7,3072.5,6.50918]
[1720548962090,0.3041287,3072.7,3072.6,3.25457]
[1720548962996,7.46,3072.9,3071.7,3.779]
[1720548963220,0.3041287,3073.3,3072.5,3.25464]
[1720548963516,0.3041287,3073.3,3073.2,3.25393]
[1720548963800,0.67746131,3073.9,3072.5,3.25464]
[1720548963801,0.3041287,3073.1,3073.0,3.25409]
[1720548964299,7.46,3074.0,3073.3,2.2649]
[1720548964300,8.44159001,3074.0,3073.3,2.2649]
[1720548964621,0.3041287,3074.1,3074.0,3.25309]
[1720548965263,0.1127116,3074.2,3074.1,5.52228]
[1720548965572,0.1127116,3074.2,3074.1,12.02824]
[1720548967571,0.1127116,3074.2,3074.1,18.28122]
[1720548968398,1.6e-06,3074.2,3074.1,18.28122]
[1720548968602,1.6e-06,3074.2,3074.1,20.109342]
[1720548970986,1.6e-06,3074.2,3074.1,16.856362]
[1720548971301,1.6e-06,3074.2,3074.1,10.603382]
[1720548971505,1.6e-06,3074.2,3074.1,13.856362]
[1720548971669,1.6e-06,3074.2,3074.1,12.02824]
[1720548973003,1.6e-06,3074.2,3074.1,8.77526]
[1720548973207,1.6e-06,3074.2,3074.1,12.02824]
[1720548974090,1.6e-06,3074.2,3074.1,6.50596]
[1720548974297,1.6e-06,3074.2,3074.1,10.409536]
[1720548975677,1.6e-06,3074.2,3074.1,7.156556]
[1720548975871,0.3041287,3073.7,3073.5,0.574503]
[1720548976098,1.6e-06,3074.2,3073.8,3.2533]
[1720548976099,0.3041287,3073.9,3073.8,3.2533]
[1720548976274,1.6e-06,3074.2,3074.1,3.25298]
[1720548976603,0.3041303,3074.2,3074.1,3.25298]
[1720548976807,0.3041303,3074.2,3074.1,6.50596]
[1720548976808,1.6e-06,3074.2,3074.1,6.50596]
[1720548977104,1.6e-06,3074.2,3074.1,7.156556]
[1720548981282,1.6e-06,3074.2,3073.4,0.91110402]
[1720548981485,1.6e-06,3074.2,3073.5,3.25357]
[1720548982095,0.3041287,3074.1,3074.0,3.25304]
[1720548982283,0.3041287,3074.1,3074.0,3.903668]
[1720548982812,0.3041287,3074.1,3074.0,3.25304]
[1720548983016,1.6e-06,3074.2,3074.1,6.50596]
[1720548984518,1.6e-06,3074.2,3074.1,9.75894]
[1720548984677,1.6e-06,3074.2,3074.1,10.734834]
[1720548985545,1.6e-06,3074.2,3074.1,3.25298]
[1720548985682,1.6e-06,3074.2,3073.4,0.68461402]
[1720548985883,0.3041287,3073.9,3073.8,3.25326]
[1720548986182,0.3041287,3073.9,3073.7,3.2534]
[1720548986610,0.3041287,3073.9,3073.8,3.2533]
[1720548986996,0.3041287,3073.7,3073.6,3.25345]
[1720548988925,0.3041287,3073.7,3073.3,3.25377]
[1720548988926,0.3041287,3073.5,3073.3,3.25376]
[1720548989591,0.3041287,3073.5,3073.3,6.50751]
[1720548990000,0.3041287,3073.5,3073.4,3.25372]
[1720548990394,0.3041287,3073.3,3073.2,6.50786]
[1720548991687,0.32529316,3074.1,3072.8,3.25427]
[1720548991688,0.3041287,3073.4,3072.8,3.25427]
[1720548992129,0.3041287,3072.9,3072.8,3.25427]
[1720548992422,0.3041287,3073.3,3072.8,3.25426]
[1720548992588,0.3041287,3073.3,3072.6,3.25451]
[1720548992926,0.3041287,3072.7,3072.6,6.509]
[1720548993229,0.3041287,3072.7,3072.6,3.25449]
[1720548994131,0.3041287,3072.7,3072.4,3.2547]
[1720548994336,3.25373,3073.4,3072.3,3.818456]
[1720548994646,0.3041287,3072.2,3072.1,3.25508]
[1720548994847,0.3041287,3072.2,3071.9,3.25529]
[1720548994848,7.46,3073.0,3072.0,3.25519]
[1720548994996,0.3041287,3072.1,3072.0,3.25514]
[1720548995194,0.3041287,3071.9,3071.8,3.25539]
[1720548995507,7.46,3073.0,3071.8,0.651096]
[1720548995508,3.25458,3072.6,3071.8,0.651096]
[1720548995711,0.3041287,3071.7,3071.4,3.25574]
[1720548995907,0.3041287,3071.7,3071.5,3.25573]
[1720548996432,0.3041287,3071.4,3071.3,3.25585]
[1720548996606,0.3041287,3071.5,3071.4,3.25574]
[1720548997032,0.3041287,3071.5,3071.3,0.4194773]
[1720548997256,0.3041287,3071.5,3071.3,3.6753773]
[1720548997536,7.46,3072.1,3071.5,3.25573]
[1720548997834,5.75178,3072.4,3071.5,3.25573]
[1720548998212,0.3041287,3072.1,3071.5,3.25573]
[1720548998447,3.2549,3072.3,3071.5,3.25573]
[1720548998644,0.3041287,3072.1,3071.5,3.25573]
[1720548998849,3.2549,3072.3,3071.5,3.25573]
[1720548999142,3.2549,3072.3,3071.3,3.6753373]
[1720548999341,12.2,3072.5,3071.9,3.25531]
[1720548999541,12.2,3072.5,3071.9,3.25524]
[1720548999750,12.2,3072.5,3072.0,3.25518]
[1720548999948,12.2,3072.5,3071.9,3.25524]
[1720549000150,12.2,3072.5,3071.9,6.51045]
[1720549000315,12.2,3072.5,3071.9,3.25521]
[1720549001309,12.2,3072.5,3072.1,3.25502]
[1720549002023,12.2,3072.5,3072.2,3.25499]
[1720549002237,2.4969,3072.8,3072.2,3.25499]
[1720549002438,0.3041287,3072.7,3072.1,6.51004]
[1720549002941,0.3041287,3072.7,3072.2,3.25499]
[1720549003165,7.46,3073.1,3072.2,3.2549]
[1720549003314,3.0,3073.0,3072.2,3.2549]
[1720549003521,0.3041287,3072.9,3072.3,3.2548]
[1720549003724,0.3041287,3072.9,3072.4,3.25471]
[1720549004249,0.3041287,3072.9,3072.4,3.25469]
[1720549004452,7.46,3073.1,3072.4,3.25469]
[1720549004743,7.46,3073.1,3072.2,3.25493]
[1720549004945,0.3041287,3072.3,3072.2,3.25493]
[1720549005314,0.3041287,3072.3,3072.2,6.50992]
[1720549006029,0.3041287,3072.9,3072.2,3.25499]
[1720549006237,0.3041287,3072.9,3072.3,0.325499]
[1720549006542,0.3041287,3072.9,3072.7,3.25445]
[1720549006747,0.3041287,3072.7,3072.6,3.25451]
[1720549006948,0.3041287,3073.0,3072.7,3.25445]
[1720549007304,0.3041287,3073.0,3072.8,3.25428]
[1720549008473,0.3041287,3072.5,3072.4,3.25473]
[1720549008673,0.3041287,3072.8,3072.4,3.25471]
[1720549008818,0.3041287,3072.8,3072.7,3.25446]
[1720549009156,0.3041287,3072.8,3072.7,3.905356]
[1720549009477,0.3041287,3072.8,3072.4,3.25471]
[1720549009754,0.3041287,3072.6,3072.4,3.25471]
[1720549009919,0.3041287,3072.6,3072.2,3.25492]
[1720549010124,0.3041287,3072.3,3072.2,3.580412]
[1720549010942,0.3041287,3072.3,3071.9,3.580761]
[1720549011260,0.3041287,3072.1,3072.0,3.2552]
[1720549011427,0.3041287,3072.0,3071.9,3.25524]
[1720549011627,0.3041287,3072.3,3072.0,3.25519]
[1720549011957,0.3041287,3072.3,3072.0,6.51033]
[1720549012469,0.3041287,3072.3,3072.0,3.25514]
[1720549012755,0.3041287,3071.9,3071.8,6.51075]
[1720549012935,0.3041287,3072.3,3072.0,3.25516]
[1720549013337,0.3041287,3072.1,3072.0,3.25516]
[1720549013869,5.55202,3072.9,3072.0,3.25516]
[1720549013870,0.3041287,3072.3,3072.0,6.51024]
[1720549014161,0.3041287,3072.3,3072.1,3.25509]
[1720549014347,0.3041287,3072.3,3072.2,3.25499]
[1720549014922,0.3041287,3072.3,3072.1,3.25508]
[1720549015245,0.3041287,3072.0,3071.9,3.25523]
[1720549019031,0.3041287,3071.9,3071.7,3.25546]
[1720549019235,0.3041287,3071.9,3071.7,6.51092]
[1720549019570,0.3041287,3071.9,3071.7,3.25546]
[1720549019730,0.3041287,3071.6,3071.5,3.25566]
[1720549020068,3.25478,3072.4,3071.3,3.25585]
[1720549020069,0.3041287,3071.5,3071.3,3.25592]
[1720549020263,0.3041287,3071.5,3071.3,6.51179]
[1720549020565,0.3041287,3071.5,3071.3,3.25587]
[1720549020951,0.3041287,3071.7,3071.3,0.651196]
[1720549021136,0.3041287,3071.7,3071.4,3.25574]
[1720549021337,0.3041287,3072.2,3071.6,3.25563]
[1720549021540,0.3041287,3072.2,3071.1,3.25612]
[1720549021541,1.12774114,3072.1,3071.1,3.25612]
[1720549021743,0.3041287,3072.0,3071.9,3.25531]
[1720549022735,0.3041287,3072.1,3072.0,3.25514]
[1720549024080,7.46,3072.6,3072.5,3.25467]
[1720549024255,1.1274632,3072.6,3072.5,6.50934]
[1720549024763,0.3041287,3072.7,3072.6,3.25457]
[1720549025150,1.4314748,3072.7,3072.6,3.25457]
[1720549026179,0.3041287,3072.7,3072.5,3.25461]
[1720549026392,0.3041287,3072.3,3072.1,6.51014]
[1720549026546,0.3041287,3072.3,3071.3,0.1609447]
[1720549026547,0.3041287,3072.1,3071.4,2.2617]
[1720549026744,1.12754725,3072.2,3071.4,2.2617]
[1720549026745,1.12754725,3072.0,3071.5,3.25565]
[1720549026969,7.7641287,3072.4,3071.9,3.25531]
[1720549027277,1.12765597,3072.3,3071.9,3.25525]
[1720549027466,0.3041287,3072.1,3071.9,3.25525]
[1720549027674,0.3041287,3072.3,3072.2,3.25499]
[1720549027851,1.43172008,3072.3,3072.2,6.50998]
[1720549028051,0.3041287,3072.3,3072.2,6.50998]
[1720549029202,1.43160953,3072.3,3072.2,6.50998]
[1720549029358,1.43162129,3072.3,3072.2,6.50998]
[1720549029545,1.43162531,3072.3,3072.2,6.50998]
[1720549029750,1.43162531,3072.3,3072.2,6.83543429]
[1720549029946,0.3041287,3072.3,3072.2,6.83543429]
[1720549030169,0.3041287,3072.7,3072.6,6.50914]
[1720549030363,1.43148816,3072.7,3072.6,6.50914]
[1720549031250,0.3041287,3072.7,3072.6,6.50914]
[1720549031452,1.43144857,3072.7,3072.6,6.50914]
[1720549032262,0.3041287,3072.7,3072.6,6.50914]
[1720549032466,0.3041287,3072.7,3072.6,7.160054]
[1720549032871,7.7641287,3072.9,3072.8,6.50872]
[1720549033071,8.89143035,3072.9,3072.8,6.50872]
[1720549033277,9.56919404,3072.9,3072.6,6.50898]
[1720549033466,0.3041287,3072.7,3072.6,6.50898]
[1720549033681,1.43143035,3072.7,3072.6,6.50898]
[1720549033874,1.43143035,3072.7,3072.2,3.25489]
[1720549033875,0.3041287,3072.3,3072.2,3.25489]
[1720549034303,0.3041287,3072.3,3072.1,3.2551]
[1720549034304,1.43161743,3072.3,3072.1,3.2551]
[1720549034451,1.43161743,3072.3,3071.8,3.25542]
[1720549034452,0.3041287,3071.9,3071.8,3.25542]
[1720549034890,0.3041287,3071.9,3071.8,6.51084]
[1720549035082,0.3041287,3072.1,3072.0,6.5104]
[1720549037088,1.43168372,3072.1,3072.0,3.2552]
[1720549037405,3.86904858,3072.1,3072.0,6.5104]
[1720549037991,2.11273286,3072.1,3072.0,6.5104]
[1720549038201,0.98517784,3072.1,3072.0,6.5104]
[1720549038369,0.98517784,3072.1,3072.0,3.2552]
[1720549038567,0.98555808,3072.1,3072.0,7.16144]
[1720549038763,1.72478793,3072.1,3072.0,6.5104]
[1720549038959,1.72479639,3072.1,3072.0,3.2552]
[1720549039188,4.20795516,3072.1,3072.0,3.2552]
[1720549039770,4.20795516,3072.1,3071.8,3.25541]
[1720549039771,3.90382646,3072.1,3071.8,3.25541]
[1720549039994,2.04429357,3072.5,3071.7,3.2555]
[1720549039995,3.90382646,3072.0,3071.9,3.2553]
[1720549040779,3.90382646,3072.0,3071.0,3.25621]
[1720549040780,6.22752646,3072.0,3070.5,0.67934776]
[1720549041092,0.98554565,3071.1,3071.0,3.25624]
[1720549041298,0.3041287,3071.1,3071.0,6.5125]
[1720549041495,0.98531815,3071.1,3071.0,6.5125]
[1720549042012,0.98531815,3071.1,3071.0,7.16375]
[1720549042218,0.68118945,3071.1,3071.0,7.16375]
[1720549042509,0.3041287,3071.5,3071.4,3.25584]
[1720549042678,2.79416671,3071.5,3071.4,3.25584]
[1720549043182,2.14957142,3071.5,3071.4,6.51168]
[1720549043390,1.36223514,3071.6,3071.5,9.76719]
[1720549043391,0.6811427,3071.6,3071.5,9.76719]
[1720549043688,8.82223514,3071.9,3071.8,9.76626]
[1720549043689,7.46,3071.9,3071.8,9.76626]
[1720549043891,0.6811427,3072.2,3072.1,9.7653]
[1720549044201,8.1411427,3072.5,3072.4,6.50956]
[1720549045074,7.46,3072.5,3072.4,3.25478]
[1720549045270,7.46,3072.5,3072.0,3.25517]
[1720549045271,7.46,3072.5,3072.2,3.25499]
[1720549045471,1.02263803,3072.3,3072.2,3.25499]
[1720549045909,1.02263803,3072.3,3071.9,3.25523]
[1720549045910,2.49105654,3072.3,3071.9,3.25523]
[1720549046085,1.02256293,3072.1,3072.0,3.25512]
[1720549046292,1.36340654,3072.2,3072.0,3.25512]
[1720549046491,1.02261771,3072.1,3072.0,3.25512]
[1720549046710,1.36340654,3072.2,3072.1,3.2551]
[1720549047011,1.02265754,3072.2,3072.1,3.2551]
[1720549047191,1.02265754,3072.2,3071.5,3.2557]
[1720549047192,1.66753524,3072.3,3071.8,3.25532]
[1720549047509,7.46,3072.5,3071.7,3.25552]
[1720549047510,1.3267462,3071.9,3071.7,3.25552]
[1720549047672,1.0226175,3071.9,3071.6,3.25557]
[1720549048096,0.98584305,3071.8,3071.7,3.25552]
[1720549048404,0.98584305,3071.8,3071.6,3.25557]
[1720549048405,0.3041287,3071.7,3071.6,3.25557]
[1720549048607,1.02248277,3071.7,3071.4,6.51157]
[1720549048816,0.68163695,3071.5,3071.4,3.25577]
[1720549048965,0.98576817,3071.5,3071.4,3.25575]
[1720549049169,0.68163947,3071.5,3071.4,3.25575]
[1720549049370,0.6815447,3071.5,3071.4,3.25575]
[1720549049596,0.6815597,3071.5,3071.4,3.25575]
[1720549049824,0.6815597,3071.6,3071.4,3.25575]
[1720549050310,0.6815597,3071.6,3071.5,3.25573]